[Event "*** Titled Tuesday Blitz"]
[Site "Chess.com"]
[Date "2020.05.19"]
[Round "5"]
[White "VaKukl"]
[Black "SamuelGhimpu2003"]
[Result "0-1"]
[WhiteElo "2370"]
[BlackElo "2601"]
[TimeControl "180+1"]
[EndTime "12:56:03 PDT"]
[Termination "SamuelGhimpu2003 won by resignation"]

1. e4 {[%clk 0:03:00.9]} 1... e6 {[%clk 0:02:00.8]} 2. d4 {[%clk 0:02:59.1]}
2... d5 {[%clk 0:02:00.9]} 3. Nd2 {[%clk 0:02:58.7]} 3... c5 {[%clk 0:02:00.3]}
4. exd5 {[%clk 0:02:58.1]} 4... Qxd5 {[%clk 0:02:01.2]} 5. Ngf3 {[%clk 0:02:56]}
5... cxd4 {[%clk 0:02:00.9]} 6. Nb3 {[%clk 0:02:54.4]} 6... Bb4+ {[%clk
0:01:51.6]} 7. Bd2 {[%clk 0:02:53.6]} 7... Bd6 {[%clk 0:01:48.3]} 8. Nfxd4
{[%clk 0:02:48.9]} 8... Nf6 {[%clk 0:01:29.5]} 9. Nb5 {[%clk 0:02:48.6]} 9...
O-O {[%clk 0:01:26.8]} 10. Nxd6 {[%clk 0:02:38.2]} 10... Qxd6 {[%clk 0:01:27.5]}
11. Bc3 {[%clk 0:02:37.2]} 11... Nd5 {[%clk 0:01:24.9]} 12. Bc4 {[%clk
0:02:30.4]} 12... Nc6 {[%clk 0:01:22.9]} 13. O-O {[%clk 0:02:23.4]} 13... b6
{[%clk 0:01:22.9]} 14. Bxd5 {[%clk 0:02:20.3]} 14... Qxd5 {[%clk 0:01:20.9]} 15.
Qxd5 {[%clk 0:02:19.8]} 15... exd5 {[%clk 0:01:21.8]} 16. Nd4 {[%clk 0:02:19.6]}
16... Nxd4 {[%clk 0:01:20.6]} 17. Bxd4 {[%clk 0:02:19.8]} 17... Be6 {[%clk
0:01:20.3]} 18. Rfe1 {[%clk 0:02:19.3]} 18... Rfc8 {[%clk 0:01:17.6]} 19. c3
{[%clk 0:02:18.5]} 19... b5 {[%clk 0:01:07.7]} 20. Re3 {[%clk 0:02:18.4]} 20...
a5 {[%clk 0:01:05.3]} 21. Rae1 {[%clk 0:02:06.9]} 21... Kf8 {[%clk 0:00:59.8]}
22. h3 {[%clk 0:02:04.5]} 22... b4 {[%clk 0:00:57.8]} 23. f4 {[%clk 0:01:52]}
23... h5 {[%clk 0:00:54.6]} 24. f5 {[%clk 0:01:43]} 24... Bxf5 {[%clk 0:00:52]}
25. Re5 {[%clk 0:01:43]} 25... Be4 {[%clk 0:00:42.6]} 26. Rxh5 {[%clk
0:01:42.1]} 26... f6 {[%clk 0:00:42.2]} 27. g4 {[%clk 0:01:39.6]} 27... Kf7
{[%clk 0:00:39.4]} 28. g5 {[%clk 0:01:37.3]} 28... Kg6 {[%clk 0:00:37.1]} 29.
Rh4 {[%clk 0:01:31.2]} 29... Kxg5 {[%clk 0:00:38]} 30. Rg4+ {[%clk 0:01:28.3]}
30... Kh6 {[%clk 0:00:38.4]} 31. Kf2 {[%clk 0:01:28.3]} 31... bxc3 {[%clk
0:00:31.1]} 32. Reg1 {[%clk 0:01:26.3]} 32... g5 {[%clk 0:00:28.2]} 33. Bxf6
{[%clk 0:01:26]} 33... Rf8 {[%clk 0:00:26.9]} 34. Rxg5 {[%clk 0:01:16.1]} 34...
Rxf6+ {[%clk 0:00:27]} 35. Ke3 {[%clk 0:01:16.4]} 35... cxb2 {[%clk 0:00:27.2]}
36. R5g4 {[%clk 0:01:15.4]} 36... Rg6 {[%clk 0:00:20.2]} 0-1

[Event "*** Titled Tuesday Blitz"]
[Site "Chess.com"]
[Date "2020.05.19"]
[Round "5"]
[White "EfM13"]
[Black "cfjohansson"]
[Result "1-0"]
[WhiteElo "2262"]
[BlackElo "2377"]
[TimeControl "180+1"]
[EndTime "12:56:03 PDT"]
[Termination "EfM13 won by resignation"]

1. e4 {[%clk 0:03:00.9]} 1... c5 {[%clk 0:02:59.3]} 2. c3 {[%clk 0:03:00.7]}
2... Nf6 {[%clk 0:02:56.6]} 3. e5 {[%clk 0:03:00.4]} 3... Nd5 {[%clk 0:02:55.2]}
4. d4 {[%clk 0:03:00.8]} 4... cxd4 {[%clk 0:02:54.5]} 5. cxd4 {[%clk 0:03:00.9]}
5... e6 {[%clk 0:02:54.4]} 6. Nf3 {[%clk 0:03:00.6]} 6... b6 {[%clk 0:02:49.6]}
7. Bc4 {[%clk 0:02:58.2]} 7... Bb7 {[%clk 0:02:48.9]} 8. O-O {[%clk 0:02:56.3]}
8... d6 {[%clk 0:02:47.5]} 9. Nc3 {[%clk 0:02:48.5]} 9... Nxc3 {[%clk
0:02:46.2]} 10. bxc3 {[%clk 0:02:47.8]} 10... Nd7 {[%clk 0:02:42.6]} 11. Qd3
{[%clk 0:02:45.4]} 11... Be7 {[%clk 0:02:40.9]} 12. exd6 {[%clk 0:02:44.6]}
12... Bxd6 {[%clk 0:02:41.8]} 13. Bg5 {[%clk 0:02:43]} 13... Qc7 {[%clk
0:02:38.8]} 14. Bb3 {[%clk 0:02:41.6]} 14... Rc8 {[%clk 0:02:37.8]} 15. Rfc1
{[%clk 0:02:40.3]} 15... h6 {[%clk 0:02:28.2]} 16. Bd2 {[%clk 0:02:30]} 16...
Nf6 {[%clk 0:02:18.5]} 17. Re1 {[%clk 0:02:29.3]} 17... O-O {[%clk 0:02:17.8]}
18. Ne5 {[%clk 0:02:22.1]} 18... Ba8 {[%clk 0:01:45.2]} 19. h3 {[%clk
0:02:19.2]} 19... Qb7 {[%clk 0:01:34.6]} 20. Qg3 {[%clk 0:02:14.8]} 20... Ne4
{[%clk 0:01:14.6]} 21. Rxe4 {[%clk 0:02:13]} 21... Qxe4 {[%clk 0:01:15]} 22. Re1
{[%clk 0:02:08.5]} 22... Qh7 {[%clk 0:00:42.9]} 23. Qg4 {[%clk 0:01:50.2]} 23...
Bd5 {[%clk 0:00:38.9]} 24. c4 {[%clk 0:01:48.6]} 24... Be4 {[%clk 0:00:35.7]}
25. Nd7 {[%clk 0:01:46.8]} 25... Bf5 {[%clk 0:00:32.1]} 26. Nf6+ {[%clk
0:01:41.7]} 26... Kh8 {[%clk 0:00:30.1]} 27. Nxh7 {[%clk 0:01:41]} 27... Bxg4
{[%clk 0:00:30.3]} 28. Nxf8 {[%clk 0:01:41.2]} 28... Bf5 {[%clk 0:00:28]} 29.
Nd7 {[%clk 0:01:40.5]} 29... f6 {[%clk 0:00:27.4]} 30. g4 {[%clk 0:01:35.8]}
30... Bd3 {[%clk 0:00:23.8]} 31. Rxe6 {[%clk 0:01:32]} 31... Ba3 {[%clk
0:00:20.5]} 32. Re3 {[%clk 0:01:26.2]} 32... Bg6 {[%clk 0:00:16.1]} 33. c5
{[%clk 0:01:21.5]} 33... Be8 {[%clk 0:00:15.6]} 34. Be6 {[%clk 0:01:17.6]} 34...
bxc5 {[%clk 0:00:11.8]} 35. Nxc5 {[%clk 0:01:16.5]} 35... Rd8 {[%clk 0:00:12.2]}
36. Rxa3 {[%clk 0:01:15.7]} 36... Rxd4 {[%clk 0:00:11.4]} 37. Be3 {[%clk
0:01:15]} 1-0

[Event "*** Titled Tuesday Blitz"]
[Site "Chess.com"]
[Date "2020.05.19"]
[Round "5"]
[White "Synctel"]
[Black "Konek-Gorbunok"]
[Result "0-1"]
[WhiteElo "1920"]
[BlackElo "2284"]
[TimeControl "180+1"]
[EndTime "12:56:03 PDT"]
[Termination "Konek-Gorbunok won on time"]

1. d4 {[%clk 0:03:00.9]} 1... c5 {[%clk 0:02:58.1]} 2. c3 {[%clk 0:02:52.3]}
2... e6 {[%clk 0:02:56.1]} 3. Nf3 {[%clk 0:02:50.7]} 3... d5 {[%clk 0:02:55.7]}
4. e3 {[%clk 0:02:46.2]} 4... Nc6 {[%clk 0:02:55.7]} 5. Bd3 {[%clk 0:02:42.5]}
5... c4 {[%clk 0:02:55.6]} 6. Bc2 {[%clk 0:02:40.9]} 6... b5 {[%clk 0:02:55.5]}
7. e4 {[%clk 0:02:32.3]} 7... dxe4 {[%clk 0:02:34.6]} 8. Bxe4 {[%clk 0:02:30.7]}
8... Bb7 {[%clk 0:02:34.6]} 9. Bg5 {[%clk 0:02:14.5]} 9... Be7 {[%clk
0:02:33.8]} 10. Bxe7 {[%clk 0:01:59]} 10... Qxe7 {[%clk 0:02:33.5]} 11. Nbd2
{[%clk 0:01:52.4]} 11... Nf6 {[%clk 0:02:31.8]} 12. Bc2 {[%clk 0:01:50.6]} 12...
O-O {[%clk 0:02:30.4]} 13. O-O {[%clk 0:01:50.5]} 13... Rfd8 {[%clk 0:02:25.9]}
14. Re1 {[%clk 0:01:36]} 14... Qd7 {[%clk 0:02:23.9]} 15. Qe2 {[%clk 0:01:21]}
15... Qd5 {[%clk 0:02:17.1]} 16. Ne4 {[%clk 0:01:05.9]} 16... Nxe4 {[%clk
0:02:15.1]} 17. Bxe4 {[%clk 0:01:02.5]} 17... Qh5 {[%clk 0:02:13.4]} 18. Rad1
{[%clk 0:00:46.4]} 18... Na5 {[%clk 0:02:07.1]} 19. Bxb7 {[%clk 0:00:43.7]}
19... Nxb7 {[%clk 0:02:06.5]} 20. Qe5 {[%clk 0:00:40.1]} 20... Qxe5 {[%clk
0:02:01.4]} 21. Nxe5 {[%clk 0:00:22.6]} 21... Rac8 {[%clk 0:01:57.7]} 22. Kf1
{[%clk 0:00:20.1]} 22... Rd5 {[%clk 0:01:53]} 23. a3 {[%clk 0:00:18.2]} 23...
Nd8 {[%clk 0:01:48.7]} 24. Re3 {[%clk 0:00:10.5]} 24... Nc6 {[%clk 0:01:48]} 25.
Nxc6 {[%clk 0:00:10]} 25... Rxc6 {[%clk 0:01:47.8]} 26. Rde1 {[%clk 0:00:07.9]}
26... Kf8 {[%clk 0:01:41.6]} 27. Re5 {[%clk 0:00:07.6]} 27... Rcd6 {[%clk
0:01:39.7]} 28. Rxd5 {[%clk 0:00:06.9]} 28... Rxd5 {[%clk 0:01:39.6]} 29. Re5
{[%clk 0:00:06.3]} 29... Ke7 {[%clk 0:01:23.3]} 30. Rxd5 {[%clk 0:00:06.3]}
30... exd5 {[%clk 0:01:23.4]} 31. Ke2 {[%clk 0:00:06.4]} 31... Ke6 {[%clk
0:01:23.3]} 32. Ke3 {[%clk 0:00:02.9]} 32... Kf5 {[%clk 0:01:22.7]} 33. h3
{[%clk 0:00:02.9]} 33... h5 {[%clk 0:01:21.9]} 34. g3 {[%clk 0:00:03]} 34... g5
{[%clk 0:01:20]} 0-1

[Event "*** Titled Tuesday Blitz"]
[Site "Chess.com"]
[Date "2020.05.19"]
[Round "5"]
[White "Maghalashvili"]
[Black "Firouzja2003"]
[Result "0-1"]
[WhiteElo "2807"]
[BlackElo "3175"]
[TimeControl "180+1"]
[EndTime "12:56:06 PDT"]
[Termination "Firouzja2003 won by resignation"]

1. Nf3 {[%clk 0:03:00.9]} 1... d5 {[%clk 0:02:16.5]} 2. g3 {[%clk 0:02:58.8]}
2... Nf6 {[%clk 0:02:15.4]} 3. Bg2 {[%clk 0:02:58.2]} 3... g6 {[%clk 0:02:14.5]}
4. b3 {[%clk 0:02:56.7]} 4... c5 {[%clk 0:02:14.5]} 5. Bb2 {[%clk 0:02:52.4]}
5... Bg7 {[%clk 0:02:12]} 6. O-O {[%clk 0:02:45.7]} 6... O-O {[%clk 0:02:06.1]}
7. d4 {[%clk 0:02:45.7]} 7... Ne4 {[%clk 0:02:01.1]} 8. c3 {[%clk 0:02:24.6]}
8... Nc6 {[%clk 0:01:58.9]} 9. Nbd2 {[%clk 0:02:21.8]} 9... Bf5 {[%clk
0:01:47.9]} 10. Rc1 {[%clk 0:01:57.6]} 10... cxd4 {[%clk 0:01:40.1]} 11. Nxd4
{[%clk 0:01:54]} 11... Nxd4 {[%clk 0:01:25.7]} 12. cxd4 {[%clk 0:01:49.1]} 12...
Qa5 {[%clk 0:01:21.3]} 13. Nxe4 {[%clk 0:01:42.6]} 13... dxe4 {[%clk 0:01:21.6]}
14. a3 {[%clk 0:01:29.6]} 14... Rad8 {[%clk 0:01:21.1]} 15. b4 {[%clk
0:01:17.8]} 15... Qa6 {[%clk 0:01:18.1]} 16. e3 {[%clk 0:01:13.1]} 16... e5
{[%clk 0:01:14.1]} 17. d5 {[%clk 0:01:11.9]} 17... h5 {[%clk 0:01:14.6]} 18. Qc2
{[%clk 0:01:07.4]} 18... Rxd5 {[%clk 0:00:37]} 19. Bxe4 {[%clk 0:01:07.3]} 19...
Bxe4 {[%clk 0:00:37.2]} 20. Qxe4 {[%clk 0:01:08.2]} 20... Rfd8 {[%clk
0:00:37.6]} 21. Qf3 {[%clk 0:00:55.9]} 21... e4 {[%clk 0:00:35.5]} 22. Qxe4
{[%clk 0:00:42.8]} 22... Bxb2 {[%clk 0:00:34.9]} 23. Rc7 {[%clk 0:00:43.7]}
23... Rd1 {[%clk 0:00:32.4]} 24. Qc4 {[%clk 0:00:26.3]} 24... Qxc4 {[%clk
0:00:29.1]} 25. Rxc4 {[%clk 0:00:25.9]} 25... Rxf1+ {[%clk 0:00:30]} 26. Kxf1
{[%clk 0:00:25.8]} 26... Bxa3 {[%clk 0:00:30.6]} 0-1

[Event "*** Titled Tuesday Blitz"]
[Site "Chess.com"]
[Date "2020.05.19"]
[Round "5"]
[White "PawnEatingZombie"]
[Black "White_Ghost"]
[Result "0-1"]
[WhiteElo "2250"]
[BlackElo "2441"]
[TimeControl "180+1"]
[EndTime "12:56:08 PDT"]
[Termination "White_Ghost won on time"]

1. d4 {[%clk 0:02:44.4]} 1... Nf6 {[%clk 0:02:58.7]} 2. c4 {[%clk 0:02:42.7]}
2... g6 {[%clk 0:02:57.6]} 3. Nc3 {[%clk 0:02:42.5]} 3... d6 {[%clk 0:02:57.4]}
4. e4 {[%clk 0:02:42.4]} 4... Nbd7 {[%clk 0:02:58]} 5. Be2 {[%clk 0:02:42.9]}
5... Bg7 {[%clk 0:02:57]} 6. Nf3 {[%clk 0:02:42.2]} 6... O-O {[%clk 0:02:57.5]}
7. O-O {[%clk 0:02:42.7]} 7... e5 {[%clk 0:02:57.8]} 8. Be3 {[%clk 0:02:43.1]}
8... exd4 {[%clk 0:02:57.2]} 9. Nxd4 {[%clk 0:02:42.7]} 9... Re8 {[%clk
0:02:56.8]} 10. f3 {[%clk 0:02:42.5]} 10... Nh5 {[%clk 0:02:55.1]} 11. Qd2
{[%clk 0:02:41.4]} 11... Nc5 {[%clk 0:02:51]} 12. Rfe1 {[%clk 0:02:34.8]} 12...
Qh4 {[%clk 0:02:44.3]} 13. Bf2 {[%clk 0:02:25.8]} 13... Qd8 {[%clk 0:02:40.5]}
14. Bf1 {[%clk 0:02:24.7]} 14... Be5 {[%clk 0:02:38]} 15. g3 {[%clk 0:02:14.1]}
15... Bd7 {[%clk 0:02:31]} 16. Rad1 {[%clk 0:02:08.7]} 16... Ng7 {[%clk
0:02:17.4]} 17. Bg2 {[%clk 0:01:34.7]} 17... Nce6 {[%clk 0:02:08]} 18. Nc2
{[%clk 0:01:27]} 18... g5 {[%clk 0:01:53.4]} 19. Be3 {[%clk 0:00:58.4]} 19... a6
{[%clk 0:01:51.5]} 20. f4 {[%clk 0:00:47.9]} 20... gxf4 {[%clk 0:01:52.4]} 21.
gxf4 {[%clk 0:00:47.8]} 21... Bf6 {[%clk 0:01:51]} 22. Kh1 {[%clk 0:00:41.8]}
22... b5 {[%clk 0:01:49.7]} 23. b3 {[%clk 0:00:36.1]} 23... bxc4 {[%clk
0:01:47.8]} 24. bxc4 {[%clk 0:00:35.8]} 24... Rb8 {[%clk 0:01:48.7]} 25. Nd5
{[%clk 0:00:34.3]} 25... Rb2 {[%clk 0:01:45.9]} 26. Qc1 {[%clk 0:00:31.2]} 26...
Rxa2 {[%clk 0:01:42.8]} 27. f5 {[%clk 0:00:22.1]} 27... Ng5 {[%clk 0:01:35.1]}
28. Nxf6+ {[%clk 0:00:18.3]} 28... Qxf6 {[%clk 0:01:36]} 29. Bd4 {[%clk
0:00:18.7]} 29... Qd8 {[%clk 0:01:28.1]} 30. Rg1 {[%clk 0:00:17.9]} 30... f6
{[%clk 0:01:26.5]} 31. h4 {[%clk 0:00:17]} 31... Nf7 {[%clk 0:01:25.6]} 32. Ne3
{[%clk 0:00:13]} 32... Ne5 {[%clk 0:01:22.7]} 33. Nd5 {[%clk 0:00:10]} 33... c6
{[%clk 0:01:21.3]} 34. Nf4 {[%clk 0:00:08.8]} 34... Qe7 {[%clk 0:01:20]} 35. Bh3
{[%clk 0:00:06.6]} 35... Kh8 {[%clk 0:01:19.1]} 36. Rxg7 {[%clk 0:00:04.7]}
36... Qxg7 {[%clk 0:01:18.6]} 37. Rg1 {[%clk 0:00:05.1]} 37... Qh6 {[%clk
0:01:19]} 38. Ne6 {[%clk 0:00:02.9]} 38... Qxh4 {[%clk 0:01:15.9]} 0-1

[Event "*** Titled Tuesday Blitz"]
[Site "Chess.com"]
[Date "2020.05.19"]
[Round "5"]
[White "jeaston1"]
[Black "aNaartjieZA"]
[Result "0-1"]
[WhiteElo "2414"]
[BlackElo "2580"]
[TimeControl "180+1"]
[EndTime "12:56:09 PDT"]
[Termination "aNaartjieZA won by resignation"]

1. d4 {[%clk 0:03:00.9]} 1... Nf6 {[%clk 0:02:59.6]} 2. c4 {[%clk 0:03:01]} 2...
c5 {[%clk 0:02:59.7]} 3. d5 {[%clk 0:03:01.2]} 3... e5 {[%clk 0:02:59.8]} 4. Nc3
{[%clk 0:02:59]} 4... d6 {[%clk 0:03:00]} 5. e4 {[%clk 0:02:58]} 5... Be7 {[%clk
0:03:00.6]} 6. Be2 {[%clk 0:02:52.8]} 6... Nbd7 {[%clk 0:03:01]} 7. Nf3 {[%clk
0:02:46.7]} 7... Nf8 {[%clk 0:03:00.4]} 8. h3 {[%clk 0:02:32.5]} 8... Ng6 {[%clk
0:02:58.9]} 9. g3 {[%clk 0:02:26.2]} 9... h5 {[%clk 0:02:58]} 10. h4 {[%clk
0:02:20.2]} 10... Bg4 {[%clk 0:02:37.3]} 11. Ng5 {[%clk 0:02:18.6]} 11... Bxe2
{[%clk 0:02:37.3]} 12. Qxe2 {[%clk 0:02:17.6]} 12... a6 {[%clk 0:02:33.4]} 13.
a4 {[%clk 0:02:14.8]} 13... Rb8 {[%clk 0:02:28.4]} 14. a5 {[%clk 0:02:14.2]}
14... Ng4 {[%clk 0:02:19.1]} 15. Kf1 {[%clk 0:01:21.1]} 15... Nf6 {[%clk
0:02:08.5]} 16. Kg2 {[%clk 0:01:17.4]} 16... Nh7 {[%clk 0:02:03.6]} 17. Nxh7
{[%clk 0:00:54.5]} 17... Rxh7 {[%clk 0:02:02.7]} 18. Be3 {[%clk 0:00:47.4]}
18... Nf8 {[%clk 0:02:02.1]} 19. Na4 {[%clk 0:00:44.5]} 19... g6 {[%clk
0:01:39.4]} 20. Rhb1 {[%clk 0:00:41.2]} 20... f5 {[%clk 0:01:37.8]} 21. b4
{[%clk 0:00:28.9]} 21... f4 {[%clk 0:01:36.3]} 22. gxf4 {[%clk 0:00:24.6]} 22...
cxb4 {[%clk 0:01:31.9]} 23. fxe5 {[%clk 0:00:21.9]} 23... Bxh4 {[%clk 0:01:31]}
24. exd6 {[%clk 0:00:13.4]} 24... Qxd6 {[%clk 0:01:24.1]} 25. f4 {[%clk
0:00:12.8]} 25... Qd7 {[%clk 0:01:15.5]} 26. e5 {[%clk 0:00:11.6]} 26... Qf5
{[%clk 0:01:07.5]} 27. Nc5 {[%clk 0:00:09.4]} 27... g5 {[%clk 0:01:04.9]} 28.
Qd3 {[%clk 0:00:08.4]} 28... Qg4+ {[%clk 0:01:03.9]} 29. Kf1 {[%clk 0:00:08]}
29... Qf3+ {[%clk 0:01:01.7]} 30. Kg1 {[%clk 0:00:07]} 30... gxf4 {[%clk
0:01:01.6]} 31. Qxh7 {[%clk 0:00:06.3]} 31... Nxh7 {[%clk 0:01:00.6]} 0-1

[Event "*** Titled Tuesday Blitz"]
[Site "Chess.com"]
[Date "2020.05.19"]
[Round "5"]
[White "DonPreuss"]
[Black "Bossche-CM"]
[Result "0-1"]
[WhiteElo "2203"]
[BlackElo "2462"]
[TimeControl "180+1"]
[EndTime "12:56:09 PDT"]
[Termination "Bossche-CM won by resignation"]

1. d4 {[%clk 0:03:00.9]} 1... Nf6 {[%clk 0:02:59.9]} 2. Nc3 {[%clk 0:03:00.7]}
2... c5 {[%clk 0:02:52]} 3. d5 {[%clk 0:02:59.8]} 3... d6 {[%clk 0:02:51.9]} 4.
e4 {[%clk 0:02:59.9]} 4... g6 {[%clk 0:02:51.9]} 5. f4 {[%clk 0:02:59.4]} 5...
Bg7 {[%clk 0:02:51.1]} 6. Nf3 {[%clk 0:02:59.5]} 6... e6 {[%clk 0:02:49.9]} 7.
Bb5+ {[%clk 0:02:57.7]} 7... Bd7 {[%clk 0:02:49.2]} 8. Bxd7+ {[%clk 0:02:58]}
8... Qxd7 {[%clk 0:02:48.8]} 9. O-O {[%clk 0:02:58.5]} 9... exd5 {[%clk
0:02:43.4]} 10. exd5 {[%clk 0:02:40.5]} 10... O-O {[%clk 0:02:42.1]} 11. Qe1
{[%clk 0:02:02.6]} 11... b5 {[%clk 0:02:39.2]} 12. Qh4 {[%clk 0:02:01.3]} 12...
b4 {[%clk 0:02:36.2]} 13. Ne2 {[%clk 0:01:53.2]} 13... Nxd5 {[%clk 0:02:34.9]}
14. f5 {[%clk 0:01:48.3]} 14... Nc6 {[%clk 0:02:22]} 15. Bh6 {[%clk 0:01:41]}
15... Qe7 {[%clk 0:02:07.2]} 16. Ng5 {[%clk 0:00:45.2]} 16... Bf6 {[%clk
0:01:11.8]} 17. Bxf8 {[%clk 0:00:40.1]} 17... Qe3+ {[%clk 0:01:06.7]} 18. Kh1
{[%clk 0:00:24.5]} 18... Bxg5 {[%clk 0:01:04.9]} 19. Qc4 {[%clk 0:00:22.4]}
19... Nb6 {[%clk 0:00:59.4]} 20. Qg4 {[%clk 0:00:13.7]} 20... Rxf8 {[%clk
0:00:56.2]} 21. fxg6 {[%clk 0:00:13.2]} 21... hxg6 {[%clk 0:00:53.8]} 22. Ng3
{[%clk 0:00:08.4]} 22... Ne5 {[%clk 0:00:47.8]} 23. Qd1 {[%clk 0:00:05.6]} 23...
Qd2 {[%clk 0:00:41.6]} 24. Qg4 {[%clk 0:00:05.2]} 24... Nxg4 {[%clk 0:00:40.6]}
0-1

[Event "*** Titled Tuesday Blitz"]
[Site "Chess.com"]
[Date "2020.05.19"]
[Round "5"]
[White "vanea_03"]
[Black "AlexTruskavetsky"]
[Result "1-0"]
[WhiteElo "2635"]
[BlackElo "2439"]
[TimeControl "180+1"]
[EndTime "12:56:11 PDT"]
[Termination "vanea_03 won on time"]

1. d4 {[%clk 0:03:00.9]} 1... g6 {[%clk 0:02:58.5]} 2. e4 {[%clk 0:03:00.8]}
2... Bg7 {[%clk 0:02:58.7]} 3. Nf3 {[%clk 0:03:01.2]} 3... d6 {[%clk 0:02:59]}
4. c3 {[%clk 0:03:01.6]} 4... Nc6 {[%clk 0:02:52.7]} 5. Bd3 {[%clk 0:03:01.4]}
5... e5 {[%clk 0:02:52.3]} 6. O-O {[%clk 0:03:02.3]} 6... Nge7 {[%clk
0:02:44.3]} 7. d5 {[%clk 0:02:57.8]} 7... Nb8 {[%clk 0:02:43.2]} 8. c4 {[%clk
0:02:58.3]} 8... O-O {[%clk 0:02:42.4]} 9. Nc3 {[%clk 0:02:58.8]} 9... Nd7
{[%clk 0:02:36.3]} 10. Be3 {[%clk 0:02:50.6]} 10... a5 {[%clk 0:02:34.4]} 11. a3
{[%clk 0:02:49.1]} 11... b6 {[%clk 0:02:28.2]} 12. b4 {[%clk 0:02:48.6]} 12...
h6 {[%clk 0:02:26]} 13. Nd2 {[%clk 0:02:43.9]} 13... f5 {[%clk 0:02:24.1]} 14.
f3 {[%clk 0:02:44.4]} 14... f4 {[%clk 0:02:22.2]} 15. Bf2 {[%clk 0:02:43.9]}
15... g5 {[%clk 0:02:22]} 16. c5 {[%clk 0:02:23.4]} 16... dxc5 {[%clk
0:02:04.7]} 17. bxc5 {[%clk 0:02:21.8]} 17... Nxc5 {[%clk 0:02:05.1]} 18. Bxc5
{[%clk 0:02:22.4]} 18... bxc5 {[%clk 0:02:05.2]} 19. Na4 {[%clk 0:02:23.1]}
19... Ng6 {[%clk 0:01:55.1]} 20. Nxc5 {[%clk 0:02:11.6]} 20... g4 {[%clk
0:01:55.3]} 21. Rc1 {[%clk 0:02:07.4]} 21... Qh4 {[%clk 0:01:52.9]} 22. Ne6
{[%clk 0:02:04]} 22... Rf6 {[%clk 0:01:37.6]} 23. Rxc7 {[%clk 0:02:01]} 23...
Bxe6 {[%clk 0:01:30.7]} 24. dxe6 {[%clk 0:02:01.9]} 24... Bf8 {[%clk 0:01:18.2]}
25. fxg4 {[%clk 0:01:54.4]} 25... Rd8 {[%clk 0:01:05.1]} 26. Rd7 {[%clk
0:01:51.4]} 26... Bc5+ {[%clk 0:00:57.6]} 27. Kh1 {[%clk 0:01:51.3]} 27... Rdf8
{[%clk 0:00:57.1]} 28. Nf3 {[%clk 0:01:41.3]} 28... Qxg4 {[%clk 0:00:55.5]} 29.
Bc4 {[%clk 0:01:40.5]} 29... Kh8 {[%clk 0:00:49.7]} 30. Rf7 {[%clk 0:01:35.9]}
30... R6xf7 {[%clk 0:00:26.6]} 31. exf7 {[%clk 0:01:36.8]} 31... Kg7 {[%clk
0:00:08.7]} 32. Qd5 {[%clk 0:01:25.5]} 32... Be3 {[%clk 0:00:05.6]} 33. Nxe5
{[%clk 0:01:20.3]} 33... Qh4 {[%clk 0:00:03]} 34. Nxg6 {[%clk 0:01:15]} 34...
Kxg6 {[%clk 0:00:03.3]} 35. Qf5+ {[%clk 0:01:15.4]} 35... Kg7 {[%clk 0:00:03.4]}
36. e5 {[%clk 0:01:15.1]} 1-0

[Event "*** Titled Tuesday Blitz"]
[Site "Chess.com"]
[Date "2020.05.19"]
[Round "5"]
[White "Er_is_geen_hoop_meer"]
[Black "Witik"]
[Result "1-0"]
[WhiteElo "2441"]
[BlackElo "2636"]
[TimeControl "180+1"]
[EndTime "12:56:14 PDT"]
[Termination "Er_is_geen_hoop_meer won by resignation"]

1. b4 {[%clk 0:03:00.9]} 1... d5 {[%clk 0:02:41.1]} 2. Bb2 {[%clk 0:03:00.2]}
2... Bg4 {[%clk 0:02:40.8]} 3. Nf3 {[%clk 0:02:59.6]} 3... Bxf3 {[%clk
0:02:40.5]} 4. gxf3 {[%clk 0:02:58.9]} 4... Nd7 {[%clk 0:02:40.7]} 5. f4 {[%clk
0:02:58.8]} 5... Ngf6 {[%clk 0:02:38.4]} 6. e3 {[%clk 0:02:58.4]} 6... g6 {[%clk
0:02:36.8]} 7. Bg2 {[%clk 0:02:56.3]} 7... e6 {[%clk 0:02:27.2]} 8. a3 {[%clk
0:02:54.8]} 8... a5 {[%clk 0:02:26.8]} 9. b5 {[%clk 0:02:53.6]} 9... a4 {[%clk
0:02:14.8]} 10. d3 {[%clk 0:02:37.9]} 10... Bg7 {[%clk 0:02:06.1]} 11. c4 {[%clk
0:02:37.2]} 11... O-O {[%clk 0:02:02.4]} 12. cxd5 {[%clk 0:02:36]} 12... exd5
{[%clk 0:02:01.1]} 13. Nc3 {[%clk 0:02:33.4]} 13... Nb6 {[%clk 0:02:00.7]} 14.
Ne2 {[%clk 0:02:29.7]} 14... Ne8 {[%clk 0:01:43.4]} 15. Qc2 {[%clk 0:02:27.3]}
15... Nd6 {[%clk 0:01:40.5]} 16. h4 {[%clk 0:02:25.6]} 16... h5 {[%clk 0:01:29]}
17. Bxg7 {[%clk 0:02:22]} 17... Kxg7 {[%clk 0:01:29]} 18. Qc3+ {[%clk
0:02:22.2]} 18... Qf6 {[%clk 0:01:24.1]} 19. Qxf6+ {[%clk 0:02:21.1]} 19... Kxf6
{[%clk 0:01:25]} 20. Nd4 {[%clk 0:02:21.4]} 20... Rfc8 {[%clk 0:01:05.3]} 21.
Kd2 {[%clk 0:02:20.2]} 21... c5 {[%clk 0:01:04.6]} 22. bxc6 {[%clk 0:02:19.6]}
22... bxc6 {[%clk 0:01:05.5]} 23. Rab1 {[%clk 0:02:19.7]} 23... Ra6 {[%clk
0:01:03.8]} 24. Rhc1 {[%clk 0:02:04.3]} 24... c5 {[%clk 0:00:51.9]} 25. Nb5
{[%clk 0:01:57.1]} 25... Nf5 {[%clk 0:00:51.4]} 26. Nc3 {[%clk 0:01:44.4]} 26...
Ke6 {[%clk 0:00:19.8]} 27. Nxd5 {[%clk 0:01:44]} 27... Nxd5 {[%clk 0:00:18.7]}
28. e4 {[%clk 0:01:44.3]} 28... Nxf4 {[%clk 0:00:18]} 29. exf5+ {[%clk
0:01:42.5]} 29... Kxf5 {[%clk 0:00:14.8]} 30. Bb7 {[%clk 0:01:42.6]} 30... Raa8
{[%clk 0:00:07.5]} 31. Bxa8 {[%clk 0:01:41.6]} 31... Rxa8 {[%clk 0:00:07.5]} 32.
Rxc5+ {[%clk 0:01:41.9]} 32... Kg4 {[%clk 0:00:08.4]} 33. Rb4 {[%clk 0:01:42]}
33... Kf3 {[%clk 0:00:07.6]} 34. Rc7 {[%clk 0:01:36.4]} 34... f5 {[%clk
0:00:07.1]} 35. Rcc4 {[%clk 0:01:33.5]} 35... Ng2 {[%clk 0:00:06.4]} 36. Rxa4
{[%clk 0:01:32.8]} 36... Rb8 {[%clk 0:00:04.8]} 37. Rab4 {[%clk 0:01:32.6]}
37... Re8 {[%clk 0:00:04.8]} 38. a4 {[%clk 0:01:32.6]} 38... Re2+ {[%clk
0:00:04.8]} 39. Kc3 {[%clk 0:01:29.4]} 39... Rxf2 {[%clk 0:00:04.8]} 40. a5
{[%clk 0:01:29.3]} 40... Ne3 {[%clk 0:00:04.5]} 41. Rf4+ {[%clk 0:01:28.8]}
41... Ke2 {[%clk 0:00:04.7]} 42. Rxf2+ {[%clk 0:01:29.7]} 42... Kxf2 {[%clk
0:00:05.1]} 43. a6 {[%clk 0:01:29.8]} 1-0